fUSD/lending_fUSD_20240423
["ID","MTS","AMOUNT","RATE_DAILY","PERIOD"]
[323286326,1713873042708,-3565.38,0.00011705,2]
[323286327,1713873042717,-500.0,0.00011705,2]
[323286328,1713873042727,-780.74,0.00011705,2]
[323286329,1713873042736,-977.57,0.00011705,2]
[323286330,1713873042746,-1782.31,0.00011705,2]
[323286332,1713873042755,-1444.89,0.00011705,2]
[323286334,1713873042764,-2980.75,0.00011705,2]
[323286336,1713873042774,-3964.24,0.00011705,2]
[323286338,1713873042785,-500.0,0.00011705,2]
[323286340,1713873042794,-602.53,0.00011705,2]
[323286343,1713873042804,-6654.49,0.00011705,2]
[323286345,1713873042814,-7268.89,0.00011705,2]
[323286347,1713873042824,-847.79,0.00011705,2]
[323286348,1713873042832,-814.46,0.00011705,2]
[323286349,1713873042841,-1164.08,0.00011705,2]
[323286350,1713873042852,-500.0,0.00011705,2]
[323286351,1713873042861,-2407.54,0.00011705,2]
[323286352,1713873042872,-7706.63,0.00011705,2]
[323286353,1713873042882,-796.49,0.00011705,2]
[323286354,1713873042892,-4238.9,0.00011705,2]
[323286355,1713873042901,-321.77504644,0.00011705,2]
[323286356,1713873042911,-500.0,0.00011705,2]
[323286357,1713873042923,-19689.96,0.00011705,2]
[323286358,1713873042932,-1205.13,0.00011705,2]
[323286359,1713873042944,-500.0,0.00011705,2]
[323286360,1713873042959,-500.0,0.00011705,2]
[323286361,1713873042973,-500.0,0.00011705,2]
[323286362,1713873042982,-500.0,0.00011705,2]
[323286363,1713873042992,-603.88,0.00011705,2]
[323286364,1713873043001,-2652.96,0.00011705,2]
[323286365,1713873043010,-749.03,0.00011705,2]
[323286366,1713873043019,-29205.69,0.00011705,2]
[323286367,1713873043029,-500.0,0.00011705,2]
[323286368,1713873043038,-676.66,0.00011705,2]
[323286369,1713873043048,-2812.25,0.00011705,2]
[323286370,1713873043058,-500.0,0.00011705,2]
[323286371,1713873043067,-500.0,0.00011705,2]
[323286372,1713873043077,-516.52,0.00011705,2]
[323286373,1713873043086,-673.98,0.00011705,2]
[323286374,1713873043096,-2077.16,0.00011705,2]
[323286375,1713873043105,-35772.68,0.00011706,2]
[323286376,1713873043114,-4087.08,0.00011706,2]
[323286377,1713873043124,-500.0,0.00011706,2]
[323286378,1713873043133,-500.0,0.00011706,2]
[323286379,1713873043142,-2478.34,0.00011706,2]
[323286380,1713873043152,-1487.12,0.00011706,2]
[323286381,1713873043161,-500.0,0.00011706,2]
[323286382,1713873043171,-500.0,0.00011706,2]
[323286383,1713873043181,-500.0,0.00011706,2]
[323286384,1713873043190,-500.0,0.00011706,2]
[323286385,1713873043199,-500.0,0.00011706,2]
[323286386,1713873043208,-500.0,0.00011706,2]
[323286387,1713873043218,-1503.32,0.00011706,2]
[323286388,1713873043227,-2847.44,0.00011706,2]
[323286389,1713873043236,-500.0,0.00011706,2]
[323286390,1713873043245,-1683.66,0.00011706,2]
[323286391,1713873043254,-1680.09,0.00011706,2]
[323286392,1713873043263,-500.0,0.00011706,2]
[323286393,1713873043273,-500.0,0.00011706,2]
[323286394,1713873043283,-500.0,0.00011706,2]
[323286395,1713873043294,-1169.96,0.00011706,2]
[323286396,1713873043305,-736.51,0.00011706,2]
[323286397,1713873043315,-500.0,0.00011706,2]
[323286398,1713873043326,-500.0,0.00011706,2]
[323286399,1713873043335,-2531.9,0.00011706,2]
[323286400,1713873043345,-676.83,0.00011706,2]
[323286401,1713873043356,-500.0,0.00011706,2]
[323286402,1713873043366,-6968.76,0.00011706,2]
[323286403,1713873043377,-500.0,0.00011706,2]
[323286404,1713873043386,-172.14970337,0.00011719,2]
[323286405,1713873043395,-156.02885865,0.0001172,2]
[323286406,1713873043405,-157.01880557,0.0001175,2]
[323286407,1713873043414,-156.728104,0.0001175,2]
[323286408,1713873043424,-1345.69430966,0.00011751,3]
[323286409,1713873043433,-500.0,0.00011773,2]
[323286410,1713873043443,-500.0,0.00011773,2]
[323286411,1713873043454,-500.0,0.00011773,2]
[323286412,1713873043464,-500.0,0.00011773,2]
[323286413,1713873043473,-742.86,0.00011773,2]
[323286414,1713873043483,-567.8,0.00011773,2]
[323286415,1713873043493,-860.75,0.00011773,2]
[323286416,1713873043504,-500.0,0.00011773,2]
[323286417,1713873043514,-500.0,0.00011773,2]
[323286418,1713873043524,-500.0,0.00011773,2]
[323286419,1713873043533,-500.0,0.00011773,2]
[323286420,1713873043542,-500.0,0.00011773,2]
[323286421,1713873043551,-500.0,0.00011773,2]
[323286423,1713873043561,-874.5,0.00011773,2]
[323286424,1713873043570,-500.0,0.00011773,2]
[323286425,1713873043580,-918.11,0.00011773,2]
[323286426,1713873043590,-728.75,0.00011773,2]
[323286427,1713873043600,-524.16,0.00011773,2]
[323286428,1713873043610,-500.0,0.00011773,2]
[323286429,1713873043619,-913.94,0.00011773,2]
[323286430,1713873043629,-769.56,0.00011773,2]
[323286431,1713873043639,-500.0,0.00011773,2]
[323286432,1713873043648,-500.0,0.00011773,2]
[323286433,1713873043658,-500.0,0.00011773,2]
[323286434,1713873043668,-859.52,0.00011773,2]
[323286435,1713873043678,-692.25,0.00011773,2]
[323286436,1713873043689,-785.65,0.00011773,2]
[323286437,1713873043698,-500.0,0.00011773,2]
[323286438,1713873043708,-500.0,0.00011773,2]
[323286439,1713873043717,-500.0,0.00011773,2]
[323286440,1713873043728,-500.0,0.00011773,2]
[323286441,1713873043737,-500.0,0.00011773,2]
[323286442,1713873043747,-253.09354667,0.00011773,2]
[323286443,1713873043757,-500.0,0.00011773,2]
[323286444,1713873043766,-500.0,0.00011773,2]
[323286445,1713873043776,-837.1,0.00011773,2]
[323286446,1713873043786,-632.59,0.00011773,2]
[323286447,1713873043795,-500.0,0.00011773,2]
[323286448,1713873043804,-500.0,0.00011773,2]
[323286449,1713873043814,-500.0,0.00011773,2]
[323286450,1713873043823,-507.64,0.00011773,2]
[323286451,1713873043833,-704.97,0.00011773,2]
[323286452,1713873043843,-621.77,0.00011773,2]
[323286453,1713873043853,-526.37,0.00011773,2]
[323286454,1713873043862,-816.95,0.000118,2]
[323286455,1713873043872,-910.21,0.000118,2]
[323286456,1713873043882,-1300.0,0.000118,4]
[323286457,1713873043891,-718.4,0.00011817,2]
[323286458,1713873043901,-1207.34,0.00011817,2]
[323286459,1713873043911,-802.62,0.00011817,2]
[323286460,1713873043921,-762.58,0.00011817,2]
[323286461,1713873043931,-500.0,0.00011817,2]
[323286462,1713873043940,-827.26,0.00011817,2]
[323286463,1713873043949,-500.0,0.00011817,2]
[323286464,1713873043958,-500.0,0.00011817,2]
[323286465,1713873043968,-500.0,0.00011817,2]
[323286466,1713873043978,-500.0,0.00011817,2]
[323286467,1713873043987,-500.0,0.00011817,2]
[323286468,1713873043996,-857.68,0.00011817,2]
[323286469,1713873044006,-500.0,0.00011817,2]
[323286470,1713873044015,-1076.98,0.00011817,2]
[323286471,1713873044024,-500.0,0.00011817,2]
[323286472,1713873044034,-776.31,0.00011817,2]
[323286473,1713873044044,-500.0,0.00011817,2]
[323286474,1713873044055,-1645.3,0.00011817,2]
[323286475,1713873044064,-500.0,0.00011817,2]
[323286476,1713873044074,-1027.79,0.00011817,2]
[323286477,1713873044083,-709.99,0.00011817,2]
[323286478,1713873044092,-500.0,0.00011817,2]
[323286479,1713873044101,-500.0,0.00011817,2]
[323286480,1713873044110,-192.93880887,0.00011817,2]
[323286481,1713873044120,-500.0,0.00011817,2]
[323286482,1713873044129,-613.55,0.00011817,2]
[323286483,1713873044139,-1105.36,0.00011817,2]
[323286484,1713873044148,-157.42559261,0.00011817,2]
[323286485,1713873044157,-962.87,0.00011817,2]
[323286486,1713873044167,-500.0,0.00011817,2]
[323286487,1713873044176,-500.0,0.00011817,2]
[323286488,1713873044185,-500.0,0.00011817,2]
[323286489,1713873044194,-596.95,0.00011817,2]
[323286490,1713873044366,-858.5,0.00011817,2]
[323286491,1713873044400,-216.65808438,0.00011817,2]
[323286492,1713873044411,-500.0,0.00011817,2]
[323286493,1713873044421,-500.0,0.00011817,2]
[323286494,1713873044431,-1415.26,0.00011817,2]
[323286495,1713873044441,-1043.79,0.00011817,2]
[323286496,1713873044451,-1032.73,0.00011817,2]
[323286497,1713873044462,-1854.76,0.00011817,2]
[323286498,1713873044472,-892.62,0.00011817,2]
[323286499,1713873044482,-969.05,0.00011817,2]
[323286500,1713873044492,-354.8932082,0.00011817,2]
[323286501,1713873044502,-1139.21,0.00011817,2]
[323286502,1713873044512,-1072.0,0.00011819,2]
[323286503,1713873044522,-44111.3927331,0.00011819,2]
[323286504,1713873044570,-805.6652269,0.00011819,2]
[323286505,1713873044591,-6585.8,0.00011819,2]
[323286506,1713873044615,-56173.24836775,0.00011819,2]
[323286507,1713873044627,-392.7047,0.00011819,2]
[323286508,1713873044640,-9538.16091558,0.00011819,2]
[323286509,1713873044651,-5128.81878843,0.00011819,2]
[323286510,1713873045378,-500.0,0.00011431,2]
[323286511,1713873045388,-8333.20318402,0.00011433,2]
[323286512,1713873045398,-500.0,0.00011705,2]
[323286513,1713873045407,-3213.84143591,0.00011819,2]
[323286514,1713873045457,-3941.71779528,0.00011819,2]
[323286515,1713873045472,-66151.16378974,0.00011819,2]
[323286516,1713873045483,-991.4894284,0.00011819,2]
[323286517,1713873045494,-420.84523644,0.00011819,2]
[323286518,1713873045506,-3343.6,0.00011819,2]
[323286521,1713873045524,-1245.63279296,0.00011819,2]
[323286524,1713873045569,-6600.4,0.00011819,2]
[323286526,1713873045581,-221899.03618161,0.00011819,2]
[323286528,1713873045592,-17249.71260018,0.00011819,2]
[323286536,1713873045958,-500.0,0.00011431,2]
[323286537,1713873045968,-326.35377524,0.00011705,2]
[323286538,1713873045981,-173.64622476,0.00011705,2]
[323286539,1713873045990,-91188.45144897,0.00011819,2]
[323286540,1713873046016,-620.1960599,0.00011819,2]
[323286541,1713873046031,-104286.62827436,0.00011819,2]
[323286542,1713873046058,-104689.33833317,0.00011819,2]
[323286543,1713873046067,-500.0,0.00011819,2]
[323286544,1713873046076,-500.0,0.00011819,2]
[323286545,1713873046086,-500.0,0.00011819,2]
[323286546,1713873046096,-500.0,0.00011819,2]
[323286547,1713873046106,-500.0,0.00011819,2]
[323286548,1713873046115,-500.0,0.00011819,2]
[323286549,1713873046125,-8027.06,0.00011819,2]
[323286550,1713873046135,-1134.59,0.00011819,2]
[323286551,1713873046144,-1441.71,0.00011819,2]
[323286552,1713873046153,-500.0,0.00011819,2]
[323286553,1713873046162,-1102.95,0.00011819,2]
[323286554,1713873046173,-500.0,0.0001182,2]
[323286555,1713873046182,-500.0,0.0001182,2]
[323286556,1713873046191,-500.0,0.0001182,2]
[323286557,1713873046200,-500.0,0.0001182,2]
[323286558,1713873046211,-500.0,0.0001182,2]
[323286560,1713873046220,-646.85,0.0001182,2]
[323286561,1713873046229,-500.0,0.0001182,2]
[323286562,1713873046238,-500.0,0.0001182,2]
[323286563,1713873046247,-500.0,0.0001182,2]
[323286564,1713873046255,-500.0,0.0001182,2]
[323286565,1713873046264,-500.0,0.0001182,2]
[323286566,1713873046273,-500.0,0.0001182,2]
[323286567,1713873046282,-500.0,0.0001182,2]
[323286568,1713873046291,-561.18,0.0001182,2]
[323286569,1713873046300,-500.0,0.0001182,2]
[323286570,1713873046309,-500.0,0.0001182,2]
[323286571,1713873046318,-641.34,0.0001182,2]
[323286572,1713873046327,-500.0,0.0001182,2]
[323286573,1713873046336,-671.83,0.0001182,2]
[323286574,1713873046345,-500.0,0.0001182,2]
[323286575,1713873046354,-563.41,0.0001182,2]
[323286576,1713873046364,-500.0,0.0001182,2]
[323286577,1713873046373,-752.46,0.0001182,2]
[323286578,1713873046382,-500.0,0.0001182,2]
[323286579,1713873046391,-935.39,0.0001182,2]
[323286580,1713873046401,-689.0,0.0001182,2]
[323286581,1713873046410,-578.45,0.0001182,2]
[323286582,1713873046420,-500.0,0.0001182,2]
[323286583,1713873046485,-508.43,0.0001182,2]
[323286584,1713873046495,-903.02,0.0001182,2]
[323286585,1713873046504,-500.0,0.0001182,2]
[323286586,1713873046514,-500.0,0.0001182,2]
[323286587,1713873046523,-500.0,0.0001182,2]
[323286588,1713873046534,-500.0,0.0001182,2]
[323286589,1713873046544,-610.54,0.0001182,2]
[323286590,1713873046555,-500.0,0.0001182,2]
[323286591,1713873046564,-500.0,0.0001182,2]
[323286592,1713873046573,-698.69,0.0001182,2]
[323286593,1713873046583,-1423.45,0.0001182,2]
[323286594,1713873046592,-518.01,0.0001182,2]
[323286595,1713873046602,-456.20528196,0.0001182,2]
[323286596,1713873046612,-719.13,0.0001182,2]
[323286597,1713873046621,-500.0,0.0001182,2]
[323286598,1713873046630,-509.81,0.0001182,2]
[323286599,1713873046640,-500.0,0.0001182,2]
[323286600,1713873046649,-500.0,0.0001182,2]
[323286601,1713873046658,-500.0,0.0001182,2]
[323286602,1713873046667,-568.44,0.0001182,2]
[323286603,1713873046677,-500.0,0.0001182,2]
[323286604,1713873046686,-500.0,0.0001182,2]
[323286605,1713873046694,-870.12,0.0001182,2]
[323286606,1713873046703,-500.0,0.0001182,2]
[323286607,1713873046712,-1644.31,0.0001182,2]
[323286608,1713873046721,-500.0,0.0001182,2]
[323286609,1713873046730,-500.0,0.0001182,2]
[323286610,1713873046740,-1255.71,0.0001182,2]
[323286611,1713873046749,-734.17,0.0001182,2]
[323286612,1713873046758,-500.0,0.0001182,2]
[323286613,1713873046768,-500.0,0.0001182,2]
[323286614,1713873046777,-500.0,0.0001182,2]
[323286615,1713873046789,-500.0,0.0001182,2]
[323286616,1713873046799,-500.0,0.0001182,2]
[323286617,1713873046809,-500.0,0.0001182,2]
[323286618,1713873046818,-500.0,0.0001182,2]
[323286619,1713873046828,-500.0,0.0001182,2]
[323286620,1713873046840,-500.0,0.0001182,2]
[323286621,1713873046850,-606.66,0.0001182,2]
[323286622,1713873046860,-577.23,0.0001182,2]
[323286623,1713873046870,-538.02,0.0001182,2]
[323286624,1713873046880,-566.59,0.0001182,2]
[323286625,1713873046890,-500.0,0.0001182,2]
[323286626,1713873046900,-552.65513222,0.0001182,2]
[323286627,1713873046909,-500.0,0.0001182,2]
[323286628,1713873046921,-500.0,0.0001182,2]
[323286629,1713873046930,-633.57680109,0.0001182,2]
[323286630,1713873046939,-500.0,0.0001182,2]
[323286631,1713873046949,-500.0,0.0001182,2]
[323286632,1713873046961,-500.0,0.0001182,2]
[323286633,1713873046970,-708.32,0.0001182,2]
[323286634,1713873046979,-1700.0,0.000119,4]
[323286635,1713873046988,-500.0,0.00011979,2]
[323286636,1713873046997,-993.32,0.00011979,2]
[323286637,1713873047006,-682.81,0.00011979,2]
[323286638,1713873047015,-500.0,0.00011979,2]
[323286639,1713873047025,-4402.27,0.00011979,2]
[323286640,1713873047034,-829.56,0.00011979,2]
[323286641,1713873047043,-765.32,0.00011979,2]
[323286642,1713873047055,-221.40017006,0.00011979,2]
[323286643,1713873047066,-577.37,0.00011979,2]
[323286644,1713873047075,-1501.73,0.00011979,2]
[323286645,1713873047084,-500.0,0.00011979,2]
[323286646,1713873047095,-500.0,0.00011979,2]
[323286647,1713873047105,-500.0,0.00011979,2]
[323286648,1713873047115,-1979.75,0.00011979,2]
[323286649,1713873047125,-3565.38,0.00011979,2]
[323286650,1713873047135,-500.0,0.00011979,2]
[323286651,1713873047145,-780.74,0.00011979,2]
[323286652,1713873047155,-977.57,0.00011979,2]
[323286653,1713873047164,-1782.31,0.00011979,2]
[323286654,1713873047174,-1444.89,0.00011979,2]
[323286655,1713873047183,-2980.75,0.00011979,2]
[323286656,1713873047192,-3964.24,0.00011979,2]
[323286657,1713873047201,-500.0,0.00011979,2]
[323286658,1713873047210,-602.53,0.00011979,2]
[323286659,1713873047220,-6654.49,0.00011979,2]
[323286660,1713873047230,-7268.89,0.00011979,2]
[323286661,1713873047239,-847.79,0.00011979,2]
[323286662,1713873047249,-814.46,0.00011979,2]
[323286663,1713873047257,-1164.08,0.00011979,2]
[323286664,1713873047267,-500.0,0.00011979,2]
[323286665,1713873047277,-2407.54,0.00011979,2]
[323286666,1713873047286,-7706.63,0.00011979,2]
[323286667,1713873047295,-796.49,0.00011979,2]
[323286668,1713873047305,-4238.9,0.00011979,2]
[323286669,1713873047314,-500.0,0.00011979,2]
[323286670,1713873047323,-19689.96,0.00011979,2]
[323286671,1713873047332,-1205.13,0.00011979,2]
[323286672,1713873047341,-500.0,0.00011979,2]
[323286673,1713873047350,-500.0,0.00011979,2]
[323286674,1713873047360,-500.0,0.00011979,2]
[323286675,1713873047369,-500.0,0.00011979,2]
[323286676,1713873047378,-603.88,0.00011979,2]
[323286677,1713873047387,-2652.96,0.00011979,2]
[323286678,1713873047396,-749.03,0.00011979,2]
[323286679,1713873047406,-29205.69,0.00011979,2]
[323286680,1713873047414,-500.0,0.00011979,2]
[323286681,1713873047425,-676.66,0.00011979,2]
[323286682,1713873047435,-2812.25,0.00011979,2]
[323286683,1713873047444,-500.0,0.00011979,2]
[323286684,1713873047454,-500.0,0.00011979,2]
[323286685,1713873047463,-516.52,0.00011979,2]
[323286686,1713873047473,-673.98,0.00011979,2]
[323286687,1713873047482,-2077.16,0.00011979,2]
[323286688,1713873047491,-500.0,0.00011979,2]
[323286689,1713873047500,-500.0,0.00011979,2]
[323286690,1713873047509,-500.0,0.0001198,2]
[323286691,1713873047517,-500.0,0.0001198,2]
[323286692,1713873047526,-2478.34,0.0001198,2]
[323286693,1713873047535,-1487.12,0.0001198,2]
[323286694,1713873047544,-500.0,0.0001198,2]
[323286695,1713873047553,-500.0,0.0001198,2]
[323286696,1713873047563,-500.0,0.0001198,2]
[323286697,1713873047573,-500.0,0.0001198,2]
[323286698,1713873047582,-500.0,0.0001198,2]
[323286699,1713873047591,-500.0,0.0001198,2]
[323286700,1713873047600,-1503.32,0.0001198,2]
[323286701,1713873047609,-2847.44,0.0001198,2]
[323286702,1713873047618,-500.0,0.0001198,2]
[323286703,1713873047627,-1683.66,0.0001198,2]
[323286704,1713873047636,-1680.09,0.0001198,2]
[323286705,1713873047646,-500.0,0.0001198,2]
[323286706,1713873047656,-500.0,0.0001198,2]
[323286707,1713873047665,-500.0,0.0001198,2]
[323286708,1713873047675,-1169.96,0.0001198,2]
[323286709,1713873047683,-736.51,0.0001198,2]
[323286710,1713873047693,-500.0,0.0001198,2]
[323286711,1713873047702,-500.0,0.0001198,2]
[323286712,1713873047711,-2531.9,0.0001198,2]
[323286713,1713873047720,-676.83,0.0001198,2]
[323286714,1713873047729,-500.0,0.0001198,2]
[323286715,1713873047738,-6968.76,0.0001198,2]
[323286716,1713873047747,-500.0,0.0001198,2]
[323286717,1713873047757,-800.0,0.0001198,2]
[323286718,1713873047766,-514.76791105,0.0001198,2]
[323286719,1713873047775,-10000.0,0.00011996,2]
[323286720,1713873047784,-1750.0,0.00012,2]
[323286721,1713873047793,-4867.704315,0.00012,2]
[323286722,1713873047802,-1000.0,0.00012014,2]
[323286723,1713873047812,-500.0,0.00012014,2]
[323286724,1713873047821,-2295.0,0.00012022,2]
[323286725,1713873047831,-462.0,0.00012022,2]
[323286726,1713873047840,-1394.0,0.00012022,2]
[323286727,1713873047849,-969.0,0.00012022,2]
[323286728,1713873047858,-1256.0,0.00012022,2]
[323286729,1713873047867,-1228.0,0.00012022,2]
[323286730,1713873047876,-660.945,0.00012022,2]
[323286731,1713873047885,-258.0,0.00012022,2]
[323286732,1713873047895,-1858.0,0.00012022,2]
[323286733,1713873047905,-807.0,0.00012022,2]
[323286734,1713873047914,-437.0,0.00012022,2]
[323286735,1713873047926,-610.0,0.00012022,2]
[323286736,1713873047935,-1474.0,0.00012022,2]
[323286737,1713873047944,-2445.0,0.00012022,2]
[323286738,1713873047953,-150.0,0.00012022,2]
[323286739,1713873047962,-3120.0,0.00012022,2]
[323286740,1713873047971,-402.0,0.00012022,2]
[323286741,1713873047983,-150.0,0.00012022,2]
[323286742,1713873047994,-214.0,0.00012022,2]
[323286743,1713873048003,-1641.0,0.00012022,2]
[323286744,1713873048013,-443.0,0.00012022,2]
[323286745,1713873048023,-195.0,0.00012022,2]
[323286746,1713873048032,-1140.0,0.00012022,2]
[323286747,1713873048042,-2706.0,0.00012022,2]
[323286748,1713873048054,-37696.0,0.00012022,2]
[323286749,1713873048066,-5894.0,0.00012022,2]
[323286750,1713873048076,-5730.0,0.00012022,2]
[323286751,1713873048085,-1055.0,0.00012022,2]
[323286752,1713873048094,-150.0,0.00012022,2]
[323286753,1713873048102,-500.0,0.00012047,2]
[323286754,1713873048111,-500.0,0.00012047,2]
[323286755,1713873048120,-500.0,0.00012047,2]
[323286756,1713873048130,-500.0,0.00012047,2]
[323286757,1713873048139,-742.86,0.00012047,2]
[323286758,1713873048148,-567.8,0.00012047,2]
[323286759,1713873048158,-860.75,0.00012047,2]
[323286760,1713873048168,-500.0,0.00012047,2]
[323286761,1713873048177,-405.11156913,0.00012047,2]
[323286762,1713873048186,-500.0,0.00012047,2]
[323286763,1713873048194,-500.0,0.00012047,2]
[323286764,1713873048203,-500.0,0.00012047,2]
[323286765,1713873048213,-500.0,0.00012047,2]
[323286766,1713873048222,-874.5,0.00012047,2]
[323286767,1713873048231,-500.0,0.00012047,2]
[323286768,1713873048240,-918.11,0.00012047,2]
[323286769,1713873048250,-728.75,0.00012047,2]
[323286770,1713873048259,-524.16,0.00012047,2]
[323286771,1713873048268,-500.0,0.00012047,2]
[323286772,1713873048277,-913.94,0.00012047,2]
[323286773,1713873048287,-769.56,0.00012047,2]
[323286774,1713873048301,-500.0,0.00012047,2]
[323286775,1713873048310,-608.48813691,0.00012047,2]
[323286776,1713873048319,-500.0,0.00012047,2]
[323286777,1713873048327,-859.52,0.00012047,2]
[323286778,1713873048336,-692.25,0.00012047,2]
[323286779,1713873048345,-785.65,0.00012047,2]
[323286780,1713873048354,-500.0,0.00012047,2]
[323286781,1713873048363,-500.0,0.00012047,2]
[323286782,1713873048372,-500.0,0.00012047,2]
[323286783,1713873048381,-500.0,0.00012047,2]
[323286784,1713873048390,-500.0,0.00012047,2]
[323286785,1713873048399,-500.0,0.00012047,2]
[323286786,1713873048408,-500.0,0.00012047,2]
[323286787,1713873048418,-837.1,0.00012047,2]
[323286788,1713873048427,-632.59,0.00012047,2]
[323286789,1713873048436,-500.0,0.00012047,2]
[323286790,1713873048445,-500.0,0.00012047,2]
[323286791,1713873048454,-500.0,0.00012047,2]
[323286792,1713873048463,-507.64,0.00012047,2]
[323286793,1713873048474,-704.97,0.00012047,2]
[323286794,1713873048483,-621.77,0.00012047,2]
[323286795,1713873048493,-526.37,0.00012047,2]
[323286796,1713873048502,-666.94,0.00012058,2]
[323286797,1713873048511,-150.0,0.00012063,2]
[323286798,1713873048520,-466.44,0.00012069,2]
[323286799,1713873048529,-150.0,0.00012078,2]
[323286800,1713873048539,-718.4,0.00012091,2]
[323286801,1713873048549,-1207.34,0.00012091,2]
[323286802,1713873048558,-802.62,0.00012091,2]
[323286803,1713873048567,-762.58,0.00012091,2]
[323286804,1713873048576,-500.0,0.00012091,2]
[323286805,1713873048586,-827.26,0.00012091,2]
[323286806,1713873048595,-500.0,0.00012091,2]
[323286807,1713873048604,-500.0,0.00012091,2]
[323286808,1713873048614,-500.0,0.00012091,2]
[323286809,1713873048623,-500.0,0.00012091,2]
[323286810,1713873048632,-363.62,0.00012091,2]
[323286811,1713873048642,-857.68,0.00012091,2]
[323286812,1713873048651,-500.0,0.00012091,2]
[323286813,1713873048662,-1076.98,0.00012091,2]
[323286814,1713873048671,-500.0,0.00012091,2]
[323286815,1713873048683,-776.31,0.00012091,2]
[323286816,1713873048692,-500.0,0.00012091,2]
[323286817,1713873048702,-1645.3,0.00012091,2]
[323286818,1713873048711,-500.0,0.00012091,2]
[323286819,1713873048720,-1027.79,0.00012091,2]
[323286820,1713873048729,-709.99,0.00012091,2]
[323286821,1713873048739,-500.0,0.00012091,2]
[323286822,1713873048748,-500.0,0.00012091,2]
[323286823,1713873048757,-612.87033566,0.00012091,2]
[323286824,1713873048766,-613.55,0.00012091,2]
[323286825,1713873048775,-1105.36,0.00012091,2]
[323286826,1713873048784,-962.87,0.00012091,2]
[323286827,1713873048793,-500.0,0.00012091,2]
[323286828,1713873048802,-500.0,0.00012091,2]
[323286829,1713873048811,-536.83203592,0.00012091,2]
[323286830,1713873048820,-596.95,0.00012091,2]
[323286831,1713873048829,-858.5,0.00012091,2]
[323286832,1713873048839,-500.0,0.00012091,2]
[323286833,1713873048848,-500.0,0.00012091,2]
[323286834,1713873048857,-1415.26,0.00012091,2]
[323286835,1713873048866,-1043.79,0.00012091,2]
[323286836,1713873048874,-1032.73,0.00012091,2]
[323286837,1713873048884,-1854.76,0.00012091,2]
[323286838,1713873048893,-892.62,0.00012091,2]
[323286839,1713873048902,-969.05,0.00012091,2]
[323286840,1713873048911,-1139.21,0.00012091,2]
[323286841,1713873048923,-500.0,0.00012093,2]
[323286842,1713873048932,-500.0,0.00012093,2]
[323286843,1713873048941,-500.0,0.00012093,2]
[323286844,1713873048951,-500.0,0.00012093,2]
[323286845,1713873048960,-500.0,0.00012093,2]
[323286846,1713873048969,-500.0,0.00012093,2]
[323286847,1713873048978,-8027.06,0.00012093,2]
[323286848,1713873048987,-1134.59,0.00012093,2]
[323286849,1713873048997,-1441.71,0.00012093,2]